[Event "Bangabandhu Premier Div League 2022"]
[Site "Dhaka"]
[Date "2022.12.10"]
[Round "11.10"]
[White "Rahman, Siddiqur"]
[Black "Koustav Chatterjee"]
[Result "0-1"]
[ECO "E12"]
[WhiteElo "1970"]
[BlackElo "2496"]
[Annotator "TA"]
[PlyCount "80"]
[EventDate "2022.11.30"]
[EventType "team-tourn"]
[EventCountry "BAN"]
[SourceTitle "playchess.com"]
[Source "ChessBase"]
[SourceQuality "1"]
[TimeControl "40/5400+30:1800+30"]

{[%evp 12,80,27,9,29,23,32,0,2,0,45,0,0,4,10,-12,56,55,93,80,70,72,83,0,0,0,0,0,0,0,25,-63,0,-31,-10,-96,-91,-162,-152,-134,-133,-141,-138,-263,-266,-275,-277,-275,-281,-262,-183,-189,-181,-189,-178,-166,-155,-254,-260,-254,-238,-515,-509,-760,-730,-691,-397,-839,-831,-29992,-29993]} 1. d4 {[%emt 0:00:03]} Nf6 {[%emt 0:05:41]} 2. c4 {[%emt 0:00:20]} b6 {[%emt 0:01:49]} 3. Nc3 {[%emt 0:00:26]} Bb7 {[%emt 0:00:06]} 4. Nf3 {[%emt 0:00:17]} e6 {[%emt 0:01:01]} 5. a3 {[%emt 0:01:27]} g6 {[%emt 0:01:49]} 6. Bg5 {[%emt 0:01:15][%cal Bc1g5,Bg5h4,Bh4g3,Bg3h2][%mdl 32]} Bg7 {[%emt 0:01:30] 6...h6 is the hot move.} 7. e3 {[%emt 0:02:00]} d6 {[%emt 0:00:57] has lost popularity (7...h6). E12: Queen's Indian: Unusual White 4th moves, 4 a3, 4 Nc3 Bb7 5 a3 and 4 Nc3 Bb7 .} 8. Be2 {[%emt 0:00:47]} Nbd7 {[%emt 0:00:24]} 9. O-O {[%emt 0:00:21]} h6 {[%emt 0:01:23] The position is equal.} 10. Bh4 {[%emt 0:01:35]} O-O {[%emt 0:09:57]} (10... g5 $5 {[%cal Rg5h4]} 11. Bg3 Nh5 $11) 11. Qc2 {[%emt 0:03:06]} g5 {[%emt 0:03:18]} 12. Bg3 {[%emt 0:00:58]} Nh5 {[%emt 0:00:13] [#]} 13. h3 $146 {[%emt 0:08:21]} ({Predecessor:} 13. Rad1 Qe7 14. Nd2 Nxg3 15. hxg3 c6 16. Rfe1 f5 17. b4 Qf7 18. Qb3 Nf6 19. a4 Rad8 20. Qa3 g4 21. a5 Bc8 22. Qa2 {½-½ (22) Prizant,J (2483)-Tomashevsky,E (2444) Essentuki 2003}) 13... f5 {[%emt 0:11:23]} (13... Nxg3 $11 14. fxg3 c5) 14. Bh2 $14 {[%emt 0:02:08]} g4 {[%emt 0:14:10]} 15. hxg4 {[%emt 0:11:05]} fxg4 {[%emt 0:00:06]} 16. Nd2 {[%emt 0:00:14]} (16. Qg6 $2 gxf3 17. Qxe6+ (17. Bxf3 $2 Rxf3 18. gxf3 Bxf3 $19) 17... Kh8 18. gxf3 Rg8 $19) 16... g3 {[%emt 0:08:13]} 17. Bxh5 {[%emt 0:22:03]} ({Better is} 17. fxg3 $16 Qg5 18. Bf3 Bxf3 19. Rxf3) 17... gxh2+ $11 {[%emt 0:04:32]} 18. Kh1 $1 {[%emt 0:01:00]} Bxg2+ {[%emt 0:01:39]} 19. Kxg2 {[%emt 0:00:05] Hoping for Kh1.} Qg5+ {[%emt 0:00:09]} 20. Kh1 $1 {[%emt 0:00:34]} Qxh5 {[%emt 0:00:08] Active counter play!} 21. Qe4 {[%emt 0:06:39]} ({White should try} 21. Nb5 $11) 21... Rae8 {[%emt 0:05:50]} (21... e5 $1 $15) 22. f4 {[%emt 0:14:40]} c5 {[%emt 0:10:26]} (22... Nf6 $5 {[%cal Rf6e4]} 23. Qc6 Ng4 $11) 23. Rf2 {[%emt 0:22:36] [#]} (23. Qg2 $11) 23... Nf6 $1 $17 {[%emt 0:02:56] Black keeps a firm grip on the game.} 24. Qf3 {[%emt 0:00:00]} (24. Qd3 $17) 24... Qxf3+ $19 {[%emt 0:03:07]} 25. Rxf3 {[%emt 0:00:00]} cxd4 {[%emt 0:04:12]} 26. exd4 {[%emt 0:00:00][%cal Oa1e1]} Ng4 {[%emt 0:00:04]} 27. Ne2 {[%emt 0:00:00] [#]} (27. Nde4 $17) 27... e5 $1 {[%emt 0:01:12]} 28. fxe5 {[%emt 0:00:00]} dxe5 {[%emt 0:00:06]} 29. d5 {[%emt 0:01:51]} Rxf3 {[%emt 0:02:41]} 30. Nxf3 {[%emt 0:00:01]} e4 {[%emt 0:00:06]} 31. Nxh2 {[%emt 0:00:57]} ({But not} 31. Nfd4 $2 Be5 32. Rf1 e3 $19) 31... Nxh2 {[%emt 0:00:06]} ({Inferior is} 31... Bxb2 32. Rg1 h5 33. Nxg4 hxg4 34. a4 $11) 32. Kxh2 {[%emt 0:00:01]} Bxb2 {[%emt 0:00:13][%mdl 4096] Endgame KRB-KRN} 33. Ra2 {[%emt 0:01:13]} Be5+ {[%emt 0:00:10]} 34. Kh3 {[%emt 0:00:11]} (34. Kg2 $17) 34... Rf8 {[%emt 0:01:04] Threatens to win with ...Rf2.} 35. Ng1 {[%emt 0:00:54]} Rf1 {[%emt 0:00:40] Inhibits a4.} 36. Ne2 {[%emt 0:00:39]} (36. Kg2 {is a better defense.} Rc1 37. Ne2 Rxc4 38. Ng3) 36... Rf2 {[%emt 0:00:25] White must now prevent ...e3.} 37. Kg4 {[%emt 0:00:35]} Kg7 {[%emt 0:00:21]} 38. Nc1 {[%emt 0:00:16]} Rf1 {[%emt 0:00:30]} 39. Ne2 $2 {[%emt 0:00:09]} (39. Rg2) 39... Kg6 {[%emt 0:00:11] ( -> ...Rf3)} 40. a4 {[%emt 0:00:22]} Rf3 {[%emt 0:00:24] Weighted Error Value: White=0.79/Black=0.23 (precise)} 0-1

[Event "Bangabandhu Premier Div League 2022"]
[Site "Dhaka"]
[Date "2022.12.10"]
[Round "11.11"]
[White "Mohammad Nubairshah Shaikh"]
[Black "Swarnavo Choudhury"]
[Result "1-0"]
[ECO "A36"]
[WhiteElo "2439"]
[BlackElo "1977"]
[Annotator "TA"]
[PlyCount "57"]
[EventDate "2022.11.30"]
[EventType "team-tourn"]
[EventCountry "BAN"]
[SourceTitle "playchess.com"]
[Source "ChessBase"]
[SourceQuality "1"]
[TimeControl "40/5400+30:1800+30"]

{[%evp 12,57,18,11,16,10,12,17,31,22,35,16,42,20,26,29,35,29,51,15,34,39,35,50,39,31,85,88,78,56,67,76,78,59,111,75,85,16,0,24,182,4,229,220,357,341,700,690]} 1. c4 {[%emt 0:06:06]} c5 {[%emt 0:02:19]} 2. g3 {[%emt 0:00:46]} Nc6 {[%emt 0:00:32]} 3. Bg2 {[%emt 0:00:03]} g6 {[%emt 0:03:21]} 4. Nc3 {[%emt 0:02:12]} Bg7 {[%emt 0:00:38]} 5. a3 {[%emt 0:00:02]} Nf6 {[%emt 0:17:58]} 6. Rb1 {[%emt 0:00:26]} a5 {[%emt 0:06:32] 6...0-0 might become the main line.} 7. e4 {[%emt 0:06:36]} d6 {[%emt 0:03:45] A36: Symmetrical English vs ...g6: 4 Bg2 Bg7.} 8. Nge2 {[%emt 0:00:05]} O-O {[%emt 0:04:03]} 9. O-O {[%emt 0:00:35]} Nd7 {[%emt 0:05:28] The position is equal.} 10. d3 {[%emt 0:00:30] [#]} Ndb8 $146 {[%emt 0:07:37]} ({Predecessor:} 10... Re8 11. Nb5 Nf8 12. Be3 Ne6 13. Qd2 Ncd4 14. Nbxd4 Nxd4 15. Nxd4 cxd4 16. Bh6 a4 17. Bxg7 Kxg7 {½-½ (59) Miezis,N (2580)-Vera Siguenas,D (2359) Istanbul 2012}) 11. Bg5 {[%emt 0:08:18]} h6 {[%emt 0:04:58]} 12. Bd2 {[%emt 0:00:47]} Nd4 {[%emt 0:12:09]} 13. Nxd4 {[%emt 0:09:26]} cxd4 {[%emt 0:00:33]} 14. Nb5 {[%emt 0:00:02]} Nc6 {[%emt 0:04:45]} 15. b4 {[%emt 0:09:49]} axb4 {[%emt 0:05:33]} 16. axb4 {[%emt 0:00:31]} Bd7 {[%emt 0:01:15]} 17. Qb3 {[%emt 0:00:41]} (17. f4 {keeps more tension.} Ra2 18. Bc1 Qc8 19. Rf2) 17... Qb6 {[%emt 0:03:08]} 18. f4 {[%emt 0:11:16][%cal Bf2f4,Bf4f5][%mdl 32] Against Ne5} Kh7 {[%emt 0:05:25]} (18... Nb8 $14) 19. Na3 $16 {[%emt 0:07:02]} Qc7 {[%emt 0:06:15]} 20. c5 {[%emt 0:05:56]} Be6 {[%emt 0:02:05]} 21. Qb2 {[%emt 0:00:02]} dxc5 {[%emt 0:01:21]} 22. bxc5 {[%emt 0:00:01]} Rfb8 {[%emt 0:00:58]} (22... Qd8 $14) 23. f5 {[%emt 0:10:25]} Bd7 {[%emt 0:00:31]} 24. Nb5 {[%emt 0:00:01] White is more active.} (24. Nc4 $16) 24... Qd8 $11 {[%emt 0:00:33]} 25. Qb3 $36 {[%emt 0:00:02][%mdl 2048] Black is under pressure.} e6 $2 {[%emt 0:00:45]} (25... g5 $11) 26. Bh3 $2 {[%emt 0:08:09]} (26. Nd6 $18 Ne5 27. Nxf7 $1 {[%mdl 512]} (27. Nxb7 $2 Qe7 $19) 27... Nxf7 28. fxe6) 26... Na5 $2 {[%emt 0:00:27]} (26... gxf5 $2 27. exf5 b6 28. fxe6 fxe6 29. Bxe6 bxc5 30. Bd5 $18) (26... b6 $1 $11 {and Black stays safe.} 27. Bf4 (27. fxe6 fxe6 28. Bxe6 bxc5 $11) 27... Na5) 27. Qd1 $18 {[%emt 0:00:25] Black must now prevent Nd6.} ({Less strong is} 27. fxg6+ fxg6 28. Qb2 b6 $16) 27... b6 {[%emt 0:00:32] [#]} (27... Bxb5 $142 28. fxg6+ fxg6) 28. Nd6 $1 {[%emt 0:01:25]} bxc5 $2 {[%emt 0:00:33]} (28... Be8 29. Nxe8 Qxe8 30. Rxb6 Rxb6 31. cxb6 Nb7) 29. Nxf7 {[%emt 0:00:02] Weighted Error Value: White=0.20 (precise) /Black=0.56} 1-0

[Event "Bangabandhu Premier Div League 2022"]
[Site "Dhaka"]
[Date "2022.12.10"]
[Round "11.12"]
[White "Bappi, A.b."]
[Black "Ikramul, Haq Siam"]
[Result "0-1"]
[ECO "A21"]
[WhiteElo "1846"]
[BlackElo "2099"]
[Annotator "TA"]
[PlyCount "88"]
[EventDate "2022.11.30"]
[EventType "team-tourn"]
[EventCountry "BAN"]
[SourceTitle "playchess.com"]
[Source "ChessBase"]
[SourceQuality "1"]
[TimeControl "40/5400+30:1800+30"]

{[%evp 9,88,5,34,33,47,45,33,39,43,35,40,3,25,16,37,39,36,-46,-36,-52,-43,-106,-120,-121,-116,-150,-115,-198,-220,-228,-102,-105,-104,-107,-110,-109,-4,-67,0,-66,-85,-71,-83,-60,19,0,0,0,0,-75,-77,-83,-74,-273,-274,-410,-263,-220,-226,-404,-382,-439,-434,-408,-414,-514,-619,-671,-658,-664,-657,-656,-640,-872,-858,-5306,-5306,-5306,-5122,-5106,-5106]} 1. c4 {[%emt 0:00:16]} e5 {[%emt 0:00:03]} 2. Nc3 {[%emt 0:00:05]} Bb4 {[%emt 0:00:03]} 3. Qc2 {[%emt 0:00:40]} c6 {[%emt 0:05:39]} 4. Nf3 {[%emt 0:02:11]} d6 {[%emt 0:00:04]} 5. g3 {[%emt 0:03:27]} f5 {[%emt 0:00:23] [#]} 6. a3 $146 {[%emt 0:03:24] A21: English Opening: 1...e5 2 Nc3.} ({Predecessor:} 6. Bg2 Nf6 7. O-O O-O 8. d3 Kh8 9. a3 Ba5 10. b4 Bc7 11. b5 a6 12. bxc6 bxc6 {1-0 (44) Ramanathan,S (1884)-Ivanov,A (2471) Albany 2017}) 6... Ba5 {[%emt 0:00:20]} 7. Bg2 {[%emt 0:01:55]} Nf6 {[%emt 0:00:26]} 8. b4 {[%emt 0:08:03] White is slightly better.} Bc7 {[%emt 0:00:17]} 9. d3 {[%emt 0:00:57]} O-O {[%emt 0:00:17]} 10. Bb2 {[%emt 0:02:47]} Kh8 {[%emt 0:03:55]} 11. h3 {[%emt 0:06:49]} a5 {[%emt 0:04:42]} 12. b5 {[%emt 0:01:24]} Qe8 {[%emt 0:06:59]} 13. e4 {[%emt 0:03:18]} ({White should try} 13. O-O $14) 13... fxe4 $15 {[%emt 0:00:56]} 14. dxe4 {[%emt 0:00:11]} Be6 {[%emt 0:00:48]} 15. Qe2 {[%emt 0:01:15]} ({Better is} 15. bxc6 $15 bxc6 16. c5) 15... Nbd7 $17 {[%emt 0:02:20]} 16. Rc1 {[%emt 0:03:54]} a4 {[%emt 0:11:15]} 17. O-O {[%emt 0:01:08][%cal Oc3d5]} Bb6 {[%emt 0:01:09] White must now prevent ...Qh5.} 18. Kh2 {[%emt 0:03:15]} (18. Ng5 $17 {is a better defense.}) 18... Qh5 $19 {[%emt 0:10:37]} 19. Nh4 {[%emt 0:06:05]} Bd4 {[%emt 0:01:06]} (19... Qxe2 $19 {has better winning chances.} 20. Nxe2 cxb5 21. cxb5 Nc5) 20. Qxh5 $17 {[%emt 0:07:02]} Nxh5 {[%emt 0:00:01]} 21. Nd1 {[%emt 0:00:16]} Bc5 {[%emt 0:03:56] Black has more active pieces. The white rooks are badly placed.} 22. Nf5 {[%emt 0:02:21]} Nb6 {[%emt 0:06:33]} (22... g6 $17 23. Nfe3 Kg8) 23. Nde3 {[%emt 0:04:58]} (23. Nxd6 $1 $11 Bxd6 24. c5) 23... cxb5 {[%emt 0:06:25]} (23... Rad8 $15) 24. Nxd6 {[%emt 0:02:21]} Bxd6 $15 {[%emt 0:02:27]} 25. c5 {[%emt 0:00:05]} Nc4 {[%emt 0:07:25]} 26. Nxc4 {[%emt 0:01:45]} Bxc4 {[%emt 0:00:46]} (26... Bxc5 $15 27. Ne3 (27. Nxe5 Bxf2 28. g4 Ng3 $17) 27... Rac8) 27. Rxc4 {[%emt 0:00:03]} bxc4 {[%emt 0:00:46]} 28. cxd6 {[%emt 0:00:03]} Rae8 {[%emt 0:08:50]} 29. Kg1 {[%emt 0:05:41] [#]} (29. d7 Re7 30. Rc1 (30. Rd1 $2 Rd8 $19) 30... b5 $19) (29. f4 $1 $11 exf4 30. e5) 29... Re6 $1 $17 {[%emt 0:03:46]} 30. Bc3 {[%emt 0:02:22]} Rxd6 {[%emt 0:05:18]} 31. Bxe5 $2 {[%emt 0:04:01] White does not recover from this.} (31. Bb4 $17 Rff6 32. Bxd6 Rxd6 33. Rb1) 31... Rd3 $19 {[%emt 0:00:40][%cal Of8e8] ...Re8! is the strong threat.} 32. Rb1 {[%emt 0:00:35]} (32. Rc1 $142 b5 33. Bc3) 32... Rb3 {[%emt 0:01:40]} (32... Rxa3 $2 {perishes.} 33. Rc1 (33. Bd6 $2 Rb3 $19) 33... Rc8 34. h4 $19) 33. Rc1 {[%emt 0:00:11] [#]} Rc8 {[%emt 0:01:34]} ({But not} 33... Rxa3 34. Bd6 Rff3 35. Bxf3 Rxf3 36. Rxc4 $18) 34. g4 $2 {[%emt 0:02:45]} (34. Bd6) 34... Nf6 {[%emt 0:00:48]} 35. Bd6 {[%emt 0:00:03]} Ne8 {[%emt 0:02:52]} 36. Bb4 {[%emt 0:01:06]} c3 {[%emt 0:00:41][%cal Bc4c3,Bc3c2][%mdl 32] Hoping for ...c2.} 37. e5 {[%emt 0:00:03]} c2 {[%emt 0:00:44] Strongly threatening ...Rb1. Black is clearly winning.} 38. Kh2 {[%emt 0:01:03]} Rb1 {[%emt 0:00:17]} 39. Bd2 {[%emt 0:00:03]} Rxc1 {[%emt 0:00:23]} 40. Bxc1 {[%emt 0:00:02]} Rd8 {[%emt 0:00:23]} 41. Bxb7 {[%emt 0:30:05]} Rd1 {[%emt 0:30:15]} 42. Bc6 {[%emt 0:00:43]} Rxc1 {[%emt 0:00:13]} 43. Bxa4 {[%emt 0:00:02]} Nc7 {[%emt 0:01:31][%cal Oc1h1] ( -> ...Rh1+!)} 44. Bxc2 {[%emt 0:00:55]} Rxc2 {[%emt 0:00:10] Weighted Error Value: White=0.63/Black=0.25 (precise)} 0-1